fUST/lending_fUST_20260220
["ID","MTS","AMOUNT","RATE_DAILY","PERIOD"]
[406019498,1771567842446,-151.0,0.00019178,2]
[406019499,1771567842455,-151.0,0.00019178,2]
[406019500,1771567842464,-151.0,0.00019178,2]
[406019501,1771567842474,-151.0,0.00019178,2]
[406019502,1771567842483,-151.0,0.00019178,2]
[406019503,1771567842492,-151.0,0.00019178,2]
[406019504,1771567842501,-151.0,0.00019178,2]
[406019505,1771567842510,-151.0,0.00019178,2]
[406019506,1771567842519,-222.49008,0.00019178,2]
[406019507,1771567842528,-161.8,0.000192,2]
[406019508,1771567842536,-475.06,0.000192,2]
[406019509,1771567842546,-1810.56,0.000192,2]
[406019510,1771567842555,-487.0,0.00019416,2]
[406019511,1771567842564,-487.0,0.00019416,2]
[406019512,1771567842573,-487.0,0.00019416,2]
[406019513,1771567842582,-487.0,0.00019416,2]
[406019514,1771567842591,-487.0,0.00019416,2]
[406019515,1771567842600,-487.0,0.00019416,2]
[406019516,1771567842609,-487.0,0.00019416,2]
[406019517,1771567842618,-487.0,0.00019416,2]
[406019518,1771567842627,-487.0,0.00019416,2]
[406019520,1771567842636,-487.0,0.00019416,2]
[406019521,1771567842645,-487.0,0.00019416,2]
[406019522,1771567842654,-595.42,0.00019416,2]
[406019523,1771567842663,-789.5469316,0.00019429,2]
[406019524,1771567842672,-822.0,0.00019937,5]
[406019525,1771567842682,-161.11,0.0001996,2]
[406019526,1771567842691,-2537.79414173,0.0002,2]
[406019531,1771567842700,-373.53568546,0.0002,2]
[406019535,1771567842711,-23000.0,0.0002,2]
[406019538,1771567842720,-203.78465705,0.0002,2]
[406019541,1771567842729,-199.49087226,0.0002,2]
[406019544,1771567842738,-312.0,0.0002017,2]
[406019547,1771567842748,-311.0,0.00020267,10]
[406019549,1771567842756,-5000.0,0.00020332,2]
[406019552,1771567842765,-553.165611,0.00020548,2]
[406019554,1771567842775,-2175.0,0.00020573,2]
[406019555,1771567842783,-175.47709591,0.00020771,11]
[406019556,1771567842793,-1063.71,0.00021,4]
[406019558,1771567842802,-218.99709185,0.00021794,56]
[406019560,1771567842811,-13939.66260113,0.00022,3]
[406019562,1771567842820,-363.77,0.00022,7]
[406019564,1771567842829,-743.73449086,0.0002206,2]
[406019566,1771567842838,-175.47709591,0.00022113,13]
[406019568,1771567842847,-339.0,0.0002217,2]
[406019570,1771567842856,-500.0,0.00022249,2]
[406019571,1771567842865,-500.0,0.00022428,2]
[406019572,1771567842874,-500.0,0.00022475,2]
[406019573,1771567842884,-1810.56,0.000225,2]
[406019574,1771567842893,-500.0,0.0002262,2]
[406019575,1771567842902,-500.0,0.00022729,2]
[406019576,1771567842911,-475.06,0.00023,14]
[406019577,1771567842920,-743.73449086,0.00023,3]
[406019578,1771567842929,-500.0,0.00023117,2]
[406019579,1771567842938,-175.47709591,0.00023455,14]
[406019580,1771567842947,-500.0,0.00023676,2]
[406019581,1771567842956,-42548.87431515,0.0002376,2]
[406019582,1771567842964,-459941.65676912,0.00024,2]
[406019583,1771567842973,-8565.64121706,0.00024,2]
[406019584,1771567842983,-743.73449086,0.00024,7]
[406019585,1771567842992,-363.77,0.00024,7]
[406019586,1771567843001,-151.0,0.00024,7]
[406019587,1771567843011,-392.59847881,0.000241,2]
[406019588,1771567843020,-293.8021324,0.0002417,2]
[406019589,1771567843029,-500.0,0.00024304,2]
[406019590,1771567843039,-500.0,0.0002447,2]
[406019591,1771567843048,-15886.51506989,0.0002475,2]
[406019592,1771567843059,-175.47709591,0.00024797,16]
[406019593,1771567843068,-11405.0,0.0002488,2]
[406019594,1771567843077,-1810.56,0.000249,2]
[406019595,1771567843087,-38901.01158632,0.000249,2]
[406019596,1771567843105,-1038.28706012,0.000249,2]
[406019597,1771567843116,-87061.19904404,0.000249,2]
[406019598,1771567843380,-500.0,9.759e-05,2]
[406019599,1771567843390,-4424.9608205,0.00020711,2]
[406019600,1771567843401,-4272.94677741,0.00020711,2]
[406019601,1771567843412,-671.77936835,0.00020711,2]
[406019604,1771567844307,-1046.07675212,0.00020711,2]
[406019605,1771567844317,-411.0,0.00022577,10]
[406019606,1771567844327,-2355.95839923,0.0002489,10]
[406019607,1771567844338,-1607.52353516,0.0002489,10]
[406019622,1771567845864,-686.84806561,0.0002489,10]
[406019623,1771567845873,-139142.80152929,0.000249,2]
[406019624,1771567845923,-710.13559901,0.000249,2]
[406019625,1771567845934,-1435.7568321,0.000249,2]
[406019672,1771569032032,-438.00428727,0.0001,2]
[406019674,1771569032044,-616.04125667,0.0001,2]
[406019676,1771569032055,-745.39781349,0.0001,2]
[406019902,1771569038180,-5056.49508421,0.0001,2]
[406019903,1771569038192,-2002.18581178,0.0001,2]
[406019904,1771569038241,-971.79574658,0.0001,2]
[406019905,1771569038252,-150.0,0.00010942,2]
[406019906,1771569038262,-3817.03897173,0.00011884,3]
[406019907,1771569038271,-416.96427719,0.00012004,3]
[406019910,1771569040489,-380.36253887,9.9e-05,2]
[406019919,1771569046104,-534.42586576,9.9e-05,2]
[406019920,1771569046114,-267.54831899,0.00012004,3]
[406019921,1771569046124,-590.0,0.00012025,2]
[406019922,1771569046133,-297.48902174,0.00012942,2]
[406019923,1771569046142,-300.0,0.00013271,2]
[406019924,1771569046151,-300.0,0.00013271,2]
[406019925,1771569046160,-1053.0,0.00013271,2]
[406019926,1771569046169,-300.0,0.00013271,2]
[406019927,1771569046178,-206.87439738,0.00013273,2]
[406019928,1771569046187,-555.16858422,0.00013273,2]
[406019929,1771569046196,-500.0,0.00013273,2]
[406019930,1771569046205,-162.10940418,0.00013273,2]
[406019931,1771569046215,-500.0,0.00013273,2]
[406019932,1771569046224,-500.0,0.00013273,2]
[406019933,1771569046234,-500.0,0.00013273,2]
[406019934,1771569046243,-250.0,0.00013547,2]
[406019935,1771569046252,-3789.85,0.0001369,2]
[406019936,1771569046260,-500.0,0.00013699,2]
[406019937,1771569046269,-500.0,0.00013699,2]
[406019938,1771569046278,-162.21935436,0.00013699,2]
[406019939,1771569046287,-500.0,0.00013699,2]
[406019940,1771569046296,-500.0,0.00013699,2]
[406019941,1771569046305,-197.8230389,0.00013699,2]
[406019942,1771569046319,-308.77983353,0.00013699,2]
[406019943,1771569046329,-500.0,0.00013699,2]
[406019944,1771569046338,-500.0,0.00013699,2]
[406019945,1771569046347,-500.0,0.00013699,2]
[406019946,1771569046356,-1000.0,0.00014247,2]
[406019947,1771569046368,-1000.0,0.00014247,2]
[406019948,1771569046377,-1000.0,0.00014247,2]
[406019949,1771569046386,-300.0,0.00014658,2]
[406019950,1771569046396,-1138.60671226,0.00014795,2]
[406019955,1771569058851,173.0,4.3e-07,2]
[406019956,1771569059922,173.0,4.3e-07,2]
[406019957,1771569060971,173.0,4.3e-07,2]
[406019958,1771569062040,173.0,4.3e-07,2]
[406019959,1771569081583,-100.38003216,9.606e-05,2]
[406019960,1771569081595,-870.99715809,9.606e-05,2]
[406019961,1771569081604,-100.38003216,9.703e-05,2]
[406019970,1771569841139,325.05,0.00014,30]
[406019992,1771570232641,-203.96655993,8.776e-05,2]
[406019993,1771570232651,-179.08106082,8.865e-05,2]
[406019994,1771570232660,-300.0,0.0001287,2]
[406019995,1771570232670,-4920.38040122,0.00012871,2]
[406019996,1771570232707,-677.04409325,0.00012871,2]
[406020002,1771570238638,-4402.57550553,0.00012871,2]
[406020003,1771570238649,-209.16106815,0.00013273,2]
[406020004,1771570238658,-500.0,0.00013273,2]
[406020005,1771570238667,-557.60955597,0.00013273,2]
[406020006,1771570238676,-500.0,0.00013273,2]
[406020007,1771570238795,-500.0,0.00013273,2]
[406020008,1771570238808,-500.0,0.00013273,2]
[406020009,1771570238818,-500.0,0.00013273,2]
[406020010,1771570238827,-337.57192797,0.00013273,2]
[406020011,1771570238837,-500.0,0.00013273,2]
[406020012,1771570238847,-382.0,0.000136,2]
[406020013,1771570238857,-347.692184,0.00013699,2]
[406020014,1771570238867,-524.47667572,0.00013699,2]
[406020015,1771570238876,-164.58997915,0.00013699,2]
[406020016,1771570238886,-500.0,0.00013699,2]
[406020017,1771570238897,-370.95896754,0.00013699,2]
[406020018,1771570238907,-161.75590042,0.00013699,2]
[406020019,1771570238918,-500.0,0.00013699,2]
[406020020,1771570238927,-527.08392446,0.00013699,2]
[406020021,1771570238936,-488.4658957,0.00013699,2]
[406020022,1771570238946,-500.0,0.00013699,2]
[406020023,1771570238955,-291.52075668,0.00013699,2]
[406020024,1771570238964,-500.0,0.00013699,2]
[406020025,1771570238974,-500.90548219,0.00013699,2]
[406020026,1771570238983,-626.24037135,0.00013821,2]
[406020027,1771570238992,-497.65689516,0.00013821,2]
[406020028,1771570239002,-1000.0,0.00013821,2]
[406020029,1771570239011,-502.15819586,0.00013821,2]
[406020030,1771570239020,-1000.0,0.00013821,2]
[406020031,1771570239029,-1000.0,0.00013821,2]
[406020032,1771570239038,-1000.0,0.00014247,2]
[406020033,1771570239048,-1000.0,0.00014247,2]
[406020034,1771570239056,-1000.0,0.00014247,2]
[406020035,1771570239066,-1000.0,0.00014247,2]
[406020036,1771570239075,-1500.0,0.00014368,2]
[406020037,1771570239086,-1500.0,0.00014368,2]
[406020038,1771570239097,-1500.0,0.00014368,2]
[406020039,1771570239105,-500.0,0.00014691,2]
[406020040,1771570239114,-250.74494433,0.00014691,2]
[406020041,1771570239123,-500.0,0.00014692,2]
[406020042,1771570239134,-500.0,0.00014692,2]
[406020043,1771570239142,-407.35739524,0.00014692,2]
[406020044,1771570239152,-500.0,0.00014692,2]
[406020045,1771570239161,-500.0,0.00014692,2]
[406020046,1771570239170,-500.0,0.00014692,2]
[406020047,1771570239179,-505.96977352,0.00014692,2]
[406020048,1771570239188,-500.0,0.00014692,2]
[406020049,1771570239197,-500.0,0.00014692,2]
[406020050,1771570239206,-334.6325058,0.00014692,2]
[406020051,1771570239215,-500.0,0.00014692,2]
[406020052,1771570239223,-500.0,0.00014692,2]
[406020053,1771570239232,-500.0,0.00014692,2]
[406020054,1771570239241,-500.0,0.00014692,2]
[406020055,1771570239250,-500.0,0.00014692,2]
[406020056,1771570239258,-500.0,0.00014692,2]
[406020057,1771570239267,-500.0,0.00014692,2]
[406020058,1771570239276,-500.0,0.00014692,2]
[406020059,1771570239285,-447.04491812,0.00014692,2]
[406020060,1771570239294,-500.0,0.00014692,2]
[406020061,1771570239303,-500.0,0.00014692,2]
[406020062,1771570239311,-500.0,0.00014692,2]
[406020063,1771570239321,-500.0,0.00014692,2]
[406020064,1771570239329,-500.0,0.00014692,2]
[406020065,1771570239338,-500.0,0.00014692,2]
[406020066,1771570239347,-500.0,0.00014692,2]
[406020067,1771570239355,-500.0,0.00014692,2]
[406020068,1771570239364,-500.0,0.00014692,2]
[406020069,1771570239373,-500.0,0.00014692,2]
[406020070,1771570239382,-500.0,0.00014692,2]
[406020071,1771570239391,-500.0,0.00014692,2]
[406020072,1771570239400,-500.0,0.00014692,2]
[406020073,1771570239409,-500.0,0.00014692,2]
[406020074,1771570239418,-608.53969495,0.00014692,2]
[406020075,1771570239427,-153.25762269,0.00014692,2]
[406020076,1771570239437,-294.28358576,0.00014692,2]
[406020077,1771570239446,-500.0,0.00014692,2]
[406020078,1771570239455,-500.0,0.00014692,2]
[406020079,1771570239464,-500.0,0.00014692,2]
[406020080,1771570239473,-500.0,0.00014692,2]
[406020081,1771570239483,-500.0,0.00014692,2]
[406020082,1771570239491,-500.0,0.00014692,2]
[406020083,1771570239500,-500.0,0.00014692,2]
[406020084,1771570239510,-500.0,0.00014692,2]
[406020085,1771570239519,-500.0,0.00014692,2]
[406020086,1771570239528,-500.0,0.00014692,2]
[406020087,1771570239537,-500.0,0.00014692,2]
[406020088,1771570239546,-500.0,0.00014692,2]
[406020089,1771570239554,-500.0,0.00014692,2]
[406020090,1771570239563,-500.0,0.00014692,2]
[406020091,1771570239572,-500.0,0.00014692,2]
[406020092,1771570239581,-500.0,0.00014692,2]
[406020093,1771570239590,-500.0,0.00014692,2]
[406020094,1771570239599,-500.0,0.00014692,2]
[406020095,1771570239608,-470.05701211,0.00014692,2]
[406020096,1771570239618,-500.0,0.00014692,2]
[406020097,1771570239626,-430.02635912,0.00014795,2]
[406020098,1771570239636,-1500.0,0.00014795,2]
[406020099,1771570239645,-825.6354297,0.00014795,2]
[406020100,1771570239655,-1500.0,0.00014795,2]
[406020101,1771570239664,-2000.0,0.00014916,2]
[406020102,1771570239673,-2000.0,0.00014916,2]
[406020103,1771570239683,-2000.0,0.00014916,2]
[406020104,1771570239692,-1003.45036912,0.00015,2]
[406020105,1771570239702,-1006.2725259,0.00015342,2]
[406020106,1771570239710,-2000.0,0.00015342,2]
[406020107,1771570239719,-1510.01542134,0.00015464,2]
[406020108,1771570239728,-964.15082786,0.00015464,2]
[406020109,1771570239737,-2500.0,0.00015464,2]
[406020110,1771570239746,-1870.47094312,0.000156,2]
[406020111,1771570239755,-2500.0,0.0001589,2]
[406020112,1771570239764,-3000.0,0.00016012,2]
[406020113,1771570239773,-392.0,0.000162,2]
[406020114,1771570239782,-2173.0,0.00016228,2]
[406020115,1771570239790,-156.0,0.00016438,2]
[406020116,1771570239799,-3000.0,0.00016438,2]
[406020117,1771570239808,-1000.0,0.00016593,2]
[406020118,1771570239817,-1000.0,0.00016986,2]
[406020119,1771570239826,-152.81865974,0.00017069,2]
[406020120,1771570239835,-3398.3009878,0.00017348,2]
[406020121,1771570239843,-392.351,0.00017573,2]
[406020122,1771570239852,-152.81865974,0.00017594,2]
[406020123,1771570239861,-152.81865974,0.00018138,2]
[406020124,1771570239870,-594.01389395,0.00019195,2]
[406020125,1771570239879,-250.0,0.00019195,2]
[406020126,1771570239889,-250.0,0.00019195,2]
[406020127,1771570239898,-250.0,0.00019195,2]
[406020128,1771570239907,-275.20540423,0.00019195,2]
[406020129,1771570239916,-966.1703842,0.00019709,2]
[406020130,1771570239925,-156.189,0.00019869,2]
[406020131,1771570239934,-155.57909627,0.0002,2]
[406020132,1771570239949,-347.692184,0.00020548,2]
[406020133,1771570239969,-291.02,0.00022,7]
[406020134,1771570239978,-163.0,0.00022,2]
[406020135,1771570239987,-743.73449086,0.00022056,2]
[406020136,1771570239996,-166.530867,0.00022414,2]
[406020137,1771570240006,-500.0,0.00022724,2]
[406020138,1771570240014,-757.0,0.00022961,10]
[406020139,1771570240023,-163.0,0.00023014,7]
[406020140,1771570240032,-168.0,0.00023287,2]
[406020141,1771570240041,-500.0,0.00023481,2]
[406020142,1771570240051,-3592.73,0.00023493,10]
[406020143,1771570240063,-168.0,0.00023503,2]
[406020144,1771570240072,-500.0,0.00023985,2]
[406020145,1771570240081,-166.0,0.000241,7]
[406020146,1771570240101,-168.0,0.00024113,2]
[406020148,1771570240120,-168.0,0.00024167,2]
[406020150,1771570240130,-291.02,0.000242,7]
[406020151,1771570240139,-168.0,0.00024311,2]
[406020152,1771570240150,-906.57015739,0.00024402,2]
[406020153,1771570240159,-614.28964255,0.00024663,2]
[406020154,1771570240169,-168.0,0.00024796,2]
[406020155,1771570240178,-168.0,0.00024863,2]
[406020156,1771570240188,-500.0,0.000249,9]
[406020157,1771570240198,-3003.64630318,0.000249,2]
[406020158,1771570240207,-892.0,0.0002498,3]
[406020159,1771570240216,-4311.28,0.0002498,10]
[406020160,1771570240225,-16718.11609181,0.0002499,2]
[406020161,1771570240239,-4292.98470474,0.0002499,2]
[406020163,1771570240662,-378.0,0.00023985,10]
[406020164,1771570240672,-7909.01872154,0.0002499,2]
[406020165,1771570240684,-1487.77680187,0.0002499,2]
[406020171,1771570245682,-486.60840937,0.00014268,2]
[406020172,1771570245767,-6594.26408555,0.00014268,2]
[406020173,1771570245777,-150.192,0.00017147,2]
[406020174,1771570245786,-150.186,0.00017147,2]
[406020175,1771570245795,-6139.74399683,0.0002499,2]
[406020181,1771570246249,-2499.76162451,0.0002499,2]
[406020182,1771570246258,-473.0,0.0002499,10]
[406020183,1771570246267,-2216.22215299,0.00024999,2]
[406020225,1771571432332,-1648.14573393,0.00011633,3]
[406020227,1771571432341,-1224.50685161,0.00011751,3]
[406020229,1771571432350,-145.80120044,0.0001187,3]
[406020231,1771571432362,-887.00879956,0.0001187,3]
[406020233,1771571432371,-112.97557136,0.00012051,2]
[406020236,1771571432393,-37.02442864,0.00012051,2]
[406020238,1771571432402,-196.58565573,0.00013273,2]
[406020240,1771571432411,-16.91631563,0.00013699,2]
[406020243,1771571432422,-253.08869634,0.00013699,2]
[406020336,1771571438465,-229.99498803,0.00013699,2]
[406020337,1771571438475,-500.0,0.00013699,2]
[406020338,1771571438484,-104.61054104,0.00013699,2]
[406020345,1771571440670,-395.38945896,0.00013699,2]
[406020346,1771571440680,-784.82317169,0.00014247,2]
[406020347,1771571440690,-1000.0,0.00014247,2]
[406020348,1771571440700,-1000.0,0.00014247,2]
[406020349,1771571440709,-1497.77108519,0.00014795,2]
[406020350,1771571440718,-250.29312833,0.00014795,2]
[406020353,1771571444027,-487.85459566,0.00014795,2]
[406020359,1771571446335,-761.85227601,0.00014795,2]
[406020360,1771571446344,-501.07051364,0.00014795,2]
[406020361,1771571446354,-2000.0,0.00015342,2]
[406020362,1771571446363,-2268.38637565,0.0001589,2]
[406020363,1771571446373,-635.0,0.00017248,2]
[406020364,1771571446382,-12.9888386,0.00019734,2]
[406020404,1771572632465,-300.0,0.00012375,2]
[406020405,1771572632475,-200.42209229,0.000124,2]
[406020406,1771572632484,-745.00168344,0.000125,2]
[406020407,1771572632493,-300.0,0.00013673,2]
[406020408,1771572632502,-487.85459566,0.00013699,2]
[406020409,1771572632512,-500.0,0.00013699,2]
[406020410,1771572632521,-600.0,0.00014221,2]
[406020411,1771572632530,-1002.49662358,0.00014247,2]
[406020412,1771572632539,-900.0,0.00014768,2]
[406020414,1771572632549,-1024.04960288,0.00015,2]
[406020416,1771572632559,-21.44127516,0.00015,2]
[406020944,1771572638637,-500.0,0.00013273,2]
[406020946,1771572638646,-1000.0,0.00013821,2]
[406020948,1771572638655,-1500.0,0.00014368,2]
[406020962,1771572638774,-1304.22421811,0.00014916,2]
[406020964,1771572638785,-706.19716126,0.00015,2]
[406020966,1771572638794,-1200.0,0.00015316,2]
[406020968,1771572638804,-844.44523226,0.0001555,2]
[406020970,1771572638813,-855.10392395,0.00015864,2]
[406020972,1771572638822,-250.26138736,0.00016438,2]
[406020974,1771572638831,-6127.28417409,0.00017,2]
[406020976,1771572638840,-150.09554065,0.00017808,2]
[406020978,1771572638849,-457.791,0.00017852,2]
[406020980,1771572638858,-725.0,0.00017852,2]
[406020982,1771572638868,-198.035,0.00017852,2]
[406020984,1771572638876,-2173.0,0.00017852,2]
[406020986,1771572638887,-587.21,0.0001799,3]
[406020988,1771572638899,-1082.12470046,0.00017999,2]
[406020990,1771572638908,-500.0,0.00017999,2]
[406020992,1771572638918,-500.0,0.00017999,2]
[406020994,1771572638927,-500.0,0.00017999,2]
[406020996,1771572638937,-500.0,0.00017999,2]
[406020998,1771572638946,-579.42835858,0.00017999,2]
[406021000,1771572638955,-500.0,0.00017999,2]
[406021002,1771572638967,-500.0,0.00017999,2]
[406021004,1771572638977,-500.0,0.00017999,2]
[406021006,1771572638986,-351.41243908,0.00017999,2]
[406021008,1771572638995,-525.52146103,0.00017999,2]
[406021010,1771572639005,-306619.23417729,0.00018,2]
[406021012,1771572639014,-6256.5894842,0.00019528,2]
[406021014,1771572639024,-719.94,0.000196,2]
[406021016,1771572639033,-172.67079087,0.00019728,2]
[406021018,1771572639042,-229.634,0.00019734,2]
[406021020,1771572639052,-987.0111614,0.00019734,2]
[406021022,1771572639061,-192.76209468,0.00020185,2]
[406021024,1771572639070,-500.0,0.00020381,2]
[406021026,1771572639080,-1067.16710287,0.000204,2]
[406021029,1771572639092,-1067.16710286,0.000204,2]
[406021031,1771572639101,-1067.16710286,0.000204,2]
[406021033,1771572639111,-266.79177573,0.000204,2]
[406021034,1771572639120,-266.79177571,0.000204,2]
[406021036,1771572639129,-266.79177571,0.000204,2]
[406021039,1771572639139,-266.79177571,0.000204,2]
[406021041,1771572639148,-310.80742357,0.00020577,2]
[406021042,1771572639157,-427.0,0.00020852,2]
[406021044,1771572639167,-539.041,0.00020852,2]
[406021046,1771572639176,-181.0,0.00020852,2]
[406021048,1771572639186,-1390.3360859,0.00021598,2]
[406021050,1771572639195,-300.0,0.00021801,2]
[406021053,1771572639204,-552.54653079,0.00022013,2]
[406021054,1771572639214,-743.73449086,0.00022051,2]
[406021056,1771572639223,-434.53928006,0.00022079,2]
[406021059,1771572639233,-160.0,0.00022303,3]
[406021060,1771572639242,-346.97177043,0.00022383,2]
[406021062,1771572639252,-355.0,0.00022545,10]
[406021064,1771572639261,-600.0,0.00022749,10]
[406021066,1771572639270,-345.278,0.00022749,2]
[406021068,1771572639278,-6256.58948419,0.00022867,2]
[406021070,1771572639287,-12015.43613124,0.0002299,2]
[406021072,1771572639296,-719.94,0.00023,14]
[406021074,1771572639305,-500.0,0.00023093,2]
[406021076,1771572639314,-168.0,0.00023433,2]
[406021078,1771572639323,-168.0,0.00023551,2]
[406021080,1771572639332,-151.0,0.00023716,2]
[406021082,1771572639343,-250.0,0.00023716,2]
[406021084,1771572639352,-250.0,0.00023716,2]
[406021086,1771572639362,-250.0,0.00023716,2]
[406021088,1771572639371,-250.0,0.00023716,2]
[406021090,1771572639379,-250.0,0.00023716,2]
[406021092,1771572639389,-267.88891693,0.00023716,2]
[406021094,1771572639398,-181.08010149,0.00023716,2]
[406021095,1771572639407,-270.86104267,0.00023716,2]
[406021097,1771572639416,-250.0,0.00023716,2]
[406021099,1771572639426,-250.0,0.00023716,2]
[406021101,1771572639435,-250.0,0.00023716,2]
[406021103,1771572639445,-250.0,0.00023716,2]
[406021105,1771572639454,-250.0,0.00023716,2]
[406021106,1771572639463,-250.0,0.00023716,2]
[406021107,1771572639472,-250.0,0.00023716,2]
[406021108,1771572639481,-250.0,0.00023716,2]
[406021109,1771572639490,-250.0,0.00023716,2]
[406021110,1771572639499,-214.52366785,0.00023716,2]
[406021111,1771572639508,-500.0,0.00023716,2]
[406021112,1771572639518,-500.0,0.00023716,2]
[406021113,1771572639527,-250.0,0.00023716,2]
[406021114,1771572639536,-282.54925914,0.00023716,2]
[406021115,1771572639546,-168.0,0.00023796,2]
[406021116,1771572639555,-427.0,0.00023852,2]
[406021117,1771572639565,-181.0,0.00023852,2]
[406021118,1771572639574,-168.0,0.00023863,2]
[406021120,1771572639584,-154.056775,0.00023985,2]
[406021122,1771572639594,-151.0,0.00023997,2]
[406021124,1771572639603,-29813.55135647,0.00024,2]
[406021126,1771572639613,-153.255819,0.00024,2]
[406021128,1771572639623,-500.0,0.00024079,2]
[406021130,1771572639632,-500.89,0.000241,7]
[406021132,1771572639641,-500.0,0.00024172,2]
[406021134,1771572639650,-168.0,0.00024409,2]
[406021136,1771572639660,-835.93025058,0.00024499,2]
[406021138,1771572639669,-168.0,0.00024554,2]
[406021140,1771572639678,-190.0,0.00024633,2]
[406021142,1771572639687,-500.0,0.00024657,2]
[406021144,1771572639696,-500.0,0.00024657,2]
[406021146,1771572639705,-500.0,0.00024657,2]
[406021148,1771572639714,-800.0,0.00024735,2]
[406021150,1771572639723,-800.0,0.00024807,2]
[406021152,1771572639732,-168.0,0.00024838,2]
[406021154,1771572639742,-920.204128,0.00024852,2]
[406021156,1771572639751,-6307.65723665,0.000249,2]
[406021158,1771572639760,-719.94,0.000249,14]
[406021159,1771572639769,-223.19202288,0.00024965,9]
[406021161,1771572639778,-500.0,0.00024979,2]
[406021164,1771572639787,-500.0,0.00024989,2]
[406021166,1771572639797,-10813.1266914,0.0002499,2]
[406021167,1771572639806,-500.0,0.00024999,2]
[406021170,1771572639816,-500.0,0.00024999,2]
[406021172,1771572639825,-500.0,0.00024999,2]
[406021173,1771572639834,-500.0,0.00024999,2]
[406021175,1771572639843,-500.0,0.00024999,2]
[406021178,1771572639853,-500.0,0.00024999,2]
[406021179,1771572639862,-495.45832985,0.00024999,2]
[406021182,1771572639871,-578122.27622683,0.00025,5]
[406021183,1771572639880,-203.0,0.00025,17]
[406021186,1771572639893,-161.81,0.00025,7]
[406021187,1771572639903,-1267.39,0.00025,2]
[406021190,1771572639912,-8000.0,0.00025,30]
[406021192,1771572639921,-326.65,0.00025,7]
[406021194,1771572639931,-160.0,0.00025,4]
[406021196,1771572639940,-161.09798848,0.00025,5]
[406021198,1771572639950,-487.0,0.00025,2]
[406021200,1771572639961,-487.0,0.00025,2]
[406021202,1771572639970,-487.0,0.00025,2]
[406021204,1771572639980,-487.0,0.00025,2]
[406021206,1771572639989,-487.0,0.00025,2]
[406021208,1771572639999,-487.0,0.00025,2]
[406021210,1771572640009,-487.0,0.00025,2]
[406021212,1771572640019,-487.0,0.00025,2]
[406021214,1771572640028,-487.0,0.00025,2]
[406021216,1771572640037,-487.0,0.00025,2]
[406021218,1771572640046,-487.0,0.00025,2]
[406021220,1771572640056,-487.0,0.00025,2]
[406021222,1771572640065,-487.0,0.00025,2]
[406021224,1771572640074,-487.0,0.00025,2]
[406021226,1771572640083,-487.0,0.00025,2]
[406021228,1771572640093,-487.0,0.00025,2]
[406021230,1771572640103,-544.12,0.00025,2]
[406021232,1771572640112,-720.0,0.00025024,10]
[406021234,1771572640122,-535.78251074,0.00025033,7]
[406021236,1771572640132,-168.0,0.00025089,2]
[406021238,1771572640143,-173.0,0.00025101,120]
[406021240,1771572640154,-500.0,0.00025121,7]
[406021242,1771572640163,-168.0,0.00025144,2]
[406021244,1771572640173,-168.0,0.00025189,2]
[406021246,1771572640183,-168.0,0.00025232,2]
[406021248,1771572640193,-168.0,0.00025263,2]
[406021250,1771572640202,-168.0,0.00025272,2]